fUST/lending_fUST_20250324
["ID","MTS","AMOUNT","RATE_DAILY","PERIOD"]
[356610038,1742816843184,-696.37626926,0.00012151,2]
[356610061,1742817033060,-300.0,0.00012149,2]
[356610062,1742817033070,-281.84163446,0.0001215,2]
[356610063,1742817033083,-551.48836554,0.0001215,2]
[356610064,1742817033093,-303.753842,0.0001215,2]
[356610065,1742817033119,-529.576158,0.0001215,2]
[356610066,1742817033130,-833.33,0.0001215,2]
[356610067,1742817033141,-833.33,0.0001215,2]
[356610068,1742817033155,-833.33,0.0001215,2]
[356610069,1742817033165,-833.33,0.0001215,2]
[356610070,1742817033175,-833.33,0.0001215,2]
[356610071,1742817033185,-833.33,0.0001215,2]
[356610072,1742817033197,-833.33,0.0001215,2]
[356610073,1742817033208,-833.33,0.0001215,2]
[356610074,1742817033218,-833.33,0.0001215,2]
[356610075,1742817033229,-833.33,0.0001215,2]
[356610076,1742817033239,-833.33,0.0001215,2]
[356610077,1742817033249,-833.33,0.0001215,2]
[356610078,1742817033259,-833.33,0.0001215,2]
[356610079,1742817033268,-833.33,0.0001215,2]
[356610080,1742817033279,-833.33,0.0001215,2]
[356610081,1742817033289,-833.33,0.0001215,2]
[356610082,1742817033298,-833.33,0.0001215,2]
[356610083,1742817033307,-833.33,0.0001215,2]
[356610084,1742817033317,-833.33,0.0001215,2]
[356610085,1742817033327,-833.33,0.0001215,2]
[356610086,1742817033336,-833.33,0.0001215,2]
[356610087,1742817033346,-833.41,0.0001215,2]
[356610088,1742817033356,-23817.04928035,0.00012151,2]
[356610089,1742817033366,-5000.0,0.00012379,2]
[356610090,1742817033376,-282.14176499,0.000125,2]
[356610091,1742817037889,-300.0,0.00012051,2]
[356610189,1742817041016,-0.0001583,0.00012051,2]
[356610192,1742817041036,-449.48944646,0.00012051,2]
[356610289,1742817042500,-269.3797874,0.00012051,2]
[356610299,1742817043929,-3981.13060784,0.00012051,2]
[356610300,1742817043940,-465.69398678,0.0001215,2]
[356610301,1742817043950,-2548.5926531,0.000125,2]
[356610302,1742817043959,-500.0,0.00013,2]
[356610303,1742817043969,-500.0,0.00013,2]
[356610304,1742817043978,-329.06,0.00013,2]
[356610305,1742817043988,-414.25,0.00013,2]
[356610306,1742817043998,-52.03771604,0.00013288,2]
[356610307,1742817044060,-745.52012446,0.00013288,2]
[356610308,1742817044071,-852.53293718,0.000133,2]
[356610520,1742817046837,-714.3000002,0.000133,2]
[356610524,1742817226417,1979.0,0.00012,2]
[356610525,1742818122148,7385.8,0.0001202,2]
[356610526,1742818159109,-269.3797874,0.00012176,2]
[356610549,1742818231828,-300.0,0.00012299,2]
[356610551,1742818231838,-574.5,0.000123,2]
[356610713,1742818660274,629.85451347,0.00012,2]
[356610714,1742818696750,-944.1686258,0.00048721,120]
[356610715,1742818696775,-500.0,0.00048721,120]
[356610716,1742818696802,-1009.0,0.00048721,30]
[356610717,1742818696827,-1935.0,0.00048721,120]
[356610718,1742818696851,-1000.0,0.00048721,30]
[356610719,1742818696876,-150.0,0.00048721,30]
[356610720,1742818696902,-316.16,0.00048721,30]
[356610721,1742818696926,-4996.449999,0.00048721,120]
[356610722,1742818696951,-5000.0,0.00048721,120]
[356610723,1742818696975,-2089.38259228,0.00048721,30]
[356610724,1742818697000,-150.22029613,0.00048721,120]
[356610725,1742818697024,-1206.45507858,0.00048721,60]
[356610726,1742818697048,-1303.29755542,0.00048721,120]
[356610727,1742818697074,-150.01792659,0.00048721,120]
[356610728,1742818697098,-150.01792658,0.00048721,120]
[356610729,1742818697123,-150.01792658,0.00048721,120]
[356610730,1742818697148,-150.01792658,0.00048721,120]
[356610731,1742818697173,-150.01792658,0.00048721,120]
[356610732,1742818697197,-150.01792658,0.00048721,120]
[356610733,1742818697222,-150.01792658,0.00048721,120]
[356610734,1742818697246,-150.01792658,0.00048721,120]
[356610735,1742818697270,-2566.36498954,0.00048721,120]
[356610736,1742818697294,-2168.28178726,0.00048721,120]
[356610737,1742818697318,-514.49024347,0.00048721,120]
[356610738,1742818697343,-1134.17099923,0.00048721,120]
[356610739,1742818697367,-501.392614,0.00048721,120]
[356610740,1742818697392,-1412.411548,0.00048721,60]
[356610741,1742818697416,-1000.0,0.00048721,30]
[356610742,1742818697441,-500.0,0.00048721,30]
[356610743,1742818697465,-500.0,0.00048721,30]
[356610744,1742818697490,-500.0,0.00048721,30]
[356610745,1742818697515,-23797.10825934,0.00048721,120]
[356610746,1742818697540,-70115.5010415,0.00048721,32]
[356610747,1742818697564,-237.80103268,0.00048721,120]
[356610748,1742818697593,-508.74632949,0.00048721,120]
[356610749,1742818697618,-314.77141764,0.00048721,120]
[356610750,1742818697642,-500.0,0.00048721,120]
[356610751,1742818697666,-500.0,0.00048721,120]
[356610752,1742818697691,-555.37633461,0.00048721,120]
[356610753,1742818697718,-509.15764064,0.00048721,120]
[356610754,1742818697749,-507.99797042,0.00048721,120]
[356610755,1742818697775,-500.0,0.00048721,120]
[356610756,1742818697801,-500.0,0.00048721,120]
[356610757,1742818697827,-500.0,0.00048721,120]
[356610758,1742818697851,-500.0,0.00048721,120]
[356610759,1742818697877,-500.0,0.00048721,120]
[356610760,1742818697901,-500.0,0.00048721,120]
[356610761,1742818697926,-500.0,0.00048721,120]
[356610762,1742818697951,-500.0,0.00048721,120]
[356610763,1742818697975,-500.0,0.00048721,120]
[356610764,1742818698000,-500.0,0.00048721,120]
[356610765,1742818698026,-500.0,0.00048721,120]
[356610766,1742818698053,-500.0,0.00048721,120]
[356610767,1742818698079,-500.0,0.00048721,120]
[356610768,1742818698105,-500.0,0.00048721,120]
[356610769,1742818698132,-243.82764504,0.00048721,120]
[356610770,1742818698158,-515.0705595,0.00048721,120]
[356610771,1742818698184,-500.0,0.00048721,120]
[356610772,1742818698337,-500.0,0.00048721,120]
[356610773,1742818698365,-500.0,0.00048721,120]
[356610774,1742818698393,-500.0,0.00048721,120]
[356610775,1742818698422,-500.0,0.00048721,120]
[356610776,1742818698450,-500.0,0.00048721,120]
[356610777,1742818698478,-500.0,0.00048721,120]
[356610778,1742818698506,-500.0,0.00048721,120]
[356610779,1742818698533,-500.0,0.00048721,120]
[356610780,1742818698561,-527.89642692,0.00048721,120]
[356610781,1742818698590,-500.0,0.00048721,120]
[356610782,1742818698617,-500.0,0.00048721,120]
[356610783,1742818698646,-500.0,0.00048721,120]
[356610784,1742818698672,-375.2409364,0.00048721,120]
[356610785,1742818698699,-1000.0,0.00048721,120]
[356610786,1742818698732,-1000.0,0.00048721,120]
[356610787,1742818698761,-1000.0,0.00048721,120]
[356610788,1742818698786,-1000.0,0.00048721,120]
[356610789,1742818698812,-1000.0,0.00048721,120]
[356610790,1742818698837,-1000.0,0.00048721,120]
[356610791,1742818698862,-1000.0,0.00048721,120]
[356610792,1742818698888,-1000.0,0.00048721,120]
[356610793,1742818698913,-1000.0,0.00048721,120]
[356610794,1742818698939,-1000.0,0.00048721,120]
[356610795,1742818698965,-1000.0,0.00048721,120]
[356610796,1742818698991,-1100.47932962,0.00048721,120]
[356610797,1742818699016,-500.0,0.00048721,120]
[356610798,1742818699042,-505.09894301,0.00048721,120]
[356610799,1742818699072,-500.0,0.00048721,120]
[356610800,1742818699097,-500.0,0.00048721,120]
[356610801,1742818699122,-500.0,0.00048721,120]
[356610802,1742818699149,-500.0,0.00048721,120]
[356610803,1742818699174,-500.0,0.00048721,120]
[356610804,1742818699200,-500.0,0.00048721,120]
[356610805,1742818699227,-500.0,0.00048721,120]
[356610806,1742818699254,-500.0,0.00048721,120]
[356610807,1742818699279,-500.0,0.00048721,120]
[356610808,1742818699304,-500.0,0.00048721,120]
[356610809,1742818699330,-500.0,0.00048721,120]
[356610810,1742818699355,-500.0,0.00048721,120]
[356610811,1742818699380,-500.0,0.00048721,120]
[356610812,1742818699405,-500.0,0.00048721,120]
[356610813,1742818699430,-500.0,0.00048721,120]
[356610814,1742818699457,-500.0,0.00048721,120]
[356610815,1742818699482,-500.0,0.00048721,120]
[356610816,1742818699507,-500.0,0.00048721,120]
[356610817,1742818699531,-500.0,0.00048721,120]
[356610818,1742818699557,-500.0,0.00048721,120]
[356610819,1742818699583,-500.0,0.00048721,120]
[356610820,1742818699609,-505.18929278,0.00048721,120]
[356610821,1742818699634,-500.0,0.00048721,120]
[356610822,1742818699667,-551.14124329,0.00048721,120]
[356610823,1742818699706,-2129.10634906,0.00048721,120]
[356610824,1742818699738,-500.0,0.00048721,120]
[356610825,1742818699772,-500.0,0.00048721,120]
[356610826,1742818699807,-510.17109925,0.00048721,120]
[356610827,1742818699840,-500.0,0.00048721,120]
[356610828,1742818699874,-510.7446577,0.00048721,120]
[356610829,1742818699906,-500.0,0.00048721,120]
[356610830,1742818699940,-500.0,0.00048721,120]
[356610831,1742818699971,-500.0,0.00048721,120]
[356610832,1742818700001,-518.50113094,0.00048721,120]
[356610833,1742818700032,-500.0,0.00048721,120]
[356610834,1742818700065,-500.0,0.00048721,120]
[356610835,1742818700100,-516.77515215,0.00048721,120]
[356610836,1742818700136,-500.0,0.00048721,120]
[356610837,1742818700164,-522.53418406,0.00048721,120]
[356610838,1742818700195,-560.14793316,0.00048721,120]
[356610839,1742818700231,-500.0,0.00048721,120]
[356610840,1742818700261,-500.0,0.00048721,120]
[356610841,1742818700295,-500.0,0.00048721,120]
[356610842,1742818700329,-500.0,0.00048721,120]
[356610843,1742818700361,-637.1152536,0.00048721,120]
[356610844,1742818700393,-500.0,0.00048721,120]
[356610845,1742818700427,-410.06471496,0.00048721,120]
[356610846,1742818700459,-500.0,0.00048721,120]
[356610847,1742818700492,-500.0,0.00048721,120]
[356610848,1742818700523,-513.62021636,0.00048721,120]
[356610849,1742818700556,-500.0,0.00048721,120]
[356610850,1742818700587,-500.0,0.00048721,120]
[356610851,1742818700620,-500.0,0.00048721,120]
[356610852,1742818700653,-500.0,0.00048721,120]
[356610853,1742818700685,-507.56512476,0.00048721,120]
[356610854,1742818700718,-500.0,0.00048721,120]
[356610855,1742818700750,-500.0,0.00048721,120]
[356610856,1742818700782,-519.40609243,0.00048721,120]
[356610857,1742818700817,-500.0,0.00048721,120]
[356610858,1742818700848,-500.0,0.00048721,120]
[356610859,1742818700881,-550.30646037,0.00048721,120]
[356610860,1742818700912,-500.0,0.00048721,120]
[356610861,1742818700944,-500.0,0.00048721,120]
[356610862,1742818700976,-500.0,0.00048721,120]
[356610863,1742818701008,-505.44442458,0.00048721,120]
[356610864,1742818701040,-500.0,0.00048721,120]
[356610865,1742818701072,-500.0,0.00048721,120]
[356610866,1742818701104,-500.0,0.00048721,120]
[356610867,1742818701137,-500.0,0.00048721,120]
[356610868,1742818701169,-513.28422939,0.00048721,120]
[356610869,1742818701201,-500.0,0.00048721,120]
[356610870,1742818701232,-518.67505007,0.00048721,120]
[356610871,1742818701263,-1416.53,0.00048721,120]
[356610872,1742818701491,-1416.53,0.00048721,120]
[356610873,1742818701518,-1416.53,0.00048721,120]
[356610874,1742818701545,-1416.53,0.00048721,120]
[356610875,1742818701571,-1416.53,0.00048721,120]
[356610876,1742818701598,-1416.53,0.00048721,120]
[356610877,1742818701624,-1416.53,0.00048721,120]
[356610878,1742818701656,-1416.53,0.00048721,120]
[356610879,1742818701683,-1416.53,0.00048721,120]
[356610880,1742818701711,-1416.53,0.00048721,120]
[356610881,1742818701738,-1416.53,0.00048721,120]
[356610882,1742818701764,-1416.53,0.00048721,120]
[356610883,1742818701792,-1416.53,0.00048721,120]
[356610884,1742818701817,-1416.53,0.00048721,120]
[356610885,1742818701842,-1416.53,0.00048721,120]
[356610886,1742818701868,-1416.53,0.00048721,120]
[356610887,1742818701896,-1416.53,0.00048721,120]
[356610888,1742818701922,-1416.53,0.00048721,120]
[356610889,1742818701950,-1416.53,0.00048721,120]
[356610890,1742818701976,-1416.53,0.00048721,120]
[356610891,1742818702002,-1416.53,0.00048721,120]
[356610892,1742818702028,-1416.53,0.00048721,120]
[356610893,1742818702055,-1416.53,0.00048721,120]
[356610894,1742818702081,-1416.70921994,0.00048721,120]
[356610895,1742818702107,-518.69820808,0.00048721,120]
[356610896,1742818702135,-513.30837485,0.00048721,120]
[356610897,1742818702162,-500.0,0.00048721,120]
[356610898,1742818702188,-500.0,0.00048721,120]
[356610899,1742818702215,-514.20434373,0.00048721,120]
[356610900,1742818702241,-597.66368064,0.00048721,120]
[356610901,1742818702268,-506.70983212,0.00048721,120]
[356610902,1742818702295,-500.0,0.00048721,120]
[356610903,1742818702320,-254.24373814,0.00048721,120]
[356610904,1742818702346,-500.0,0.00048721,120]
[356610905,1742818702371,-500.0,0.00048721,120]
[356610906,1742818702397,-500.0,0.00048721,120]
[356610907,1742818702422,-500.0,0.00048721,120]
[356610908,1742818702449,-253.25742006,0.00048721,120]
[356610909,1742818702475,-507.01819964,0.00048721,120]
[356610910,1742818702500,-508.0206394,0.00048721,120]
[356610911,1742818702525,-506.82858777,0.00048721,120]
[356610912,1742818702550,-500.0,0.00048721,120]
[356610913,1742818702575,-500.0,0.00048721,120]
[356610914,1742818702603,-552.53436452,0.00048721,120]
[356610915,1742818702628,-503.25364237,0.00048721,120]
[356610916,1742818702656,-537.21452354,0.00048721,120]
[356610917,1742818702682,-500.0,0.00048721,120]
[356610918,1742818702710,-500.0,0.00048721,120]
[356610919,1742818702736,-500.0,0.00048721,120]
[356610920,1742818702765,-500.0,0.00048721,120]
[356610921,1742818702792,-500.0,0.00048721,120]
[356610922,1742818702818,-500.0,0.00048721,120]
[356610923,1742818702844,-526.48679573,0.00048721,120]
[356610924,1742818702870,-349.83043459,0.00048721,120]
[356610925,1742818702898,-508.74492912,0.00048721,120]
[356610926,1742818702925,-509.4558341,0.00048721,120]
[356610927,1742818702953,-515.66256012,0.00048721,120]
[356610928,1742818702980,-500.0,0.00048721,120]
[356610929,1742818703007,-512.46355747,0.00048721,120]
[356610930,1742818703033,-500.0,0.00048721,120]
[356610931,1742818703065,-500.0,0.00048721,120]
[356610932,1742818703094,-500.0,0.00048721,120]
[356610933,1742818703121,-562.58764105,0.00048721,120]
[356610934,1742818703149,-507.90735212,0.00048721,120]
[356610935,1742818703175,-500.0,0.00048721,120]
[356610936,1742818703200,-500.0,0.00048721,120]
[356610937,1742818703226,-540.5892301,0.00048721,120]
[356610938,1742818703253,-500.0,0.00048721,120]
[356610939,1742818703279,-500.0,0.00048721,120]
[356610940,1742818703304,-500.0,0.00048721,120]
[356610941,1742818703330,-500.0,0.00048721,120]
[356610942,1742818703356,-500.0,0.00048721,120]
[356610943,1742818703383,-500.0,0.00048721,120]
[356610944,1742818703410,-500.0,0.00048721,120]
[356610945,1742818703436,-500.0,0.00048721,120]
[356610946,1742818703463,-500.0,0.00048721,120]
[356610947,1742818703491,-500.0,0.00048721,120]
[356610948,1742818703516,-500.0,0.00048721,120]
[356610949,1742818703542,-500.0,0.00048721,120]
[356610950,1742818703569,-157.21,0.00048721,120]
[356610951,1742818703596,-511.4222487,0.00048721,120]
[356610952,1742818703622,-511.2785688,0.00048721,120]
[356610953,1742818703648,-500.0,0.00048721,120]
[356610954,1742818703675,-500.0,0.00048721,120]
[356610955,1742818703703,-500.0,0.00048721,120]
[356610956,1742818703733,-500.0,0.00048721,120]
[356610957,1742818703758,-500.0,0.00048721,120]
[356610958,1742818703785,-500.0,0.00048721,120]
[356610959,1742818703810,-500.0,0.00048721,120]
[356610960,1742818703836,-500.0,0.00048721,120]
[356610961,1742818703861,-500.0,0.00048721,120]
[356610962,1742818703887,-212.08066808,0.00048721,120]
[356610963,1742818703913,-500.0,0.00048721,120]
[356610964,1742818704063,-500.0,0.00048721,120]
[356610965,1742818704091,-628.962162,0.00048721,120]
[356610966,1742818704119,-500.0,0.00048721,120]
[356610967,1742818704146,-500.0,0.00048721,120]
[356610968,1742818704173,-562.75309869,0.00048721,120]
[356610969,1742818704200,-500.0,0.00048721,120]
[356610970,1742818704227,-500.0,0.00048721,120]
[356610971,1742818704252,-500.0,0.00048721,120]
[356610972,1742818704278,-500.0,0.00048721,120]
[356610973,1742818704304,-500.0,0.00048721,120]
[356610974,1742818704330,-158.40050294,0.00048721,120]
[356610975,1742818704356,-519.57385576,0.00048721,120]
[356610976,1742818704382,-500.0,0.00048721,120]
[356610977,1742818704408,-500.0,0.00048721,120]
[356610978,1742818704434,-510.97064706,0.00048721,120]
[356610979,1742818704459,-501.21073548,0.00048721,120]
[356610980,1742818704485,-500.0,0.00048721,120]
[356610981,1742818704511,-509.94948766,0.00048721,120]
[356610982,1742818704536,-500.0,0.00048721,120]
[356610983,1742818704563,-500.0,0.00048721,120]
[356610984,1742818704588,-500.0,0.00048721,120]
[356610985,1742818704615,-500.0,0.00048721,120]
[356610986,1742818704642,-325.68394765,0.00048721,120]
[356610987,1742818704669,-500.0,0.00048721,120]
[356610988,1742818704697,-510.38563955,0.00048721,120]
[356610989,1742818704726,-202.07446116,0.00048721,120]
[356610990,1742818704752,-500.0,0.00048721,120]
[356610991,1742818704778,-500.0,0.00048721,120]
[356610992,1742818704804,-508.86764255,0.00048721,120]
[356610993,1742818704830,-511.52002292,0.00048721,120]
[356610994,1742818704855,-584.81155569,0.00048721,120]
[356610995,1742818704881,-500.0,0.00048721,120]
[356610996,1742818704907,-500.0,0.00048721,120]
[356610997,1742818704932,-506.35576884,0.00048721,120]
[356610998,1742818704959,-500.0,0.00048721,120]
[356610999,1742818704984,-512.09769394,0.00048721,120]
[356611000,1742818705010,-511.89207049,0.00048721,120]
[356611001,1742818705036,-500.0,0.00048721,120]
[356611002,1742818705062,-500.0,0.00048721,120]
[356611003,1742818705089,-500.0,0.00048721,120]
[356611004,1742818705116,-500.0,0.00048721,120]
[356611005,1742818705142,-509.86541436,0.00048721,120]
[356611006,1742818705169,-511.16636044,0.00048721,120]
[356611007,1742818705200,-500.0,0.00048721,120]
[356611008,1742818705227,-500.0,0.00048721,120]
[356611009,1742818705253,-500.0,0.00048721,120]
[356611010,1742818705280,-513.52926022,0.00048721,120]
[356611011,1742818705306,-500.0,0.00048721,120]
[356611012,1742818705332,-509.27061485,0.00048721,120]
[356611013,1742818705359,-500.0,0.00048721,120]
[356611014,1742818705385,-500.0,0.00048721,120]
[356611015,1742818705411,-500.0,0.00048721,120]
[356611016,1742818705437,-500.0,0.00048721,120]
[356611017,1742818705464,-500.0,0.00048721,120]
[356611018,1742818705491,-500.0,0.00048721,120]
[356611019,1742818705517,-500.0,0.00048721,120]
[356611020,1742818705542,-500.0,0.00048721,120]
[356611021,1742818705568,-401.809235,0.00048721,120]
[356611022,1742818705594,-500.0,0.00048721,120]
[356611023,1742818705620,-500.0,0.00048721,120]
[356611024,1742818705647,-500.0,0.00048721,120]
[356611025,1742818705673,-500.0,0.00048721,120]
[356611026,1742818705700,-500.0,0.00048721,120]
[356611027,1742818705729,-500.0,0.00048721,120]
[356611028,1742818705755,-500.0,0.00048721,120]
[356611029,1742818705781,-500.0,0.00048721,120]
[356611030,1742818705808,-500.0,0.00048721,120]
[356611031,1742818705833,-500.0,0.00048721,120]
[356611032,1742818705859,-500.0,0.00048721,120]
[356611033,1742818705884,-500.0,0.00048721,120]
[356611034,1742818705909,-500.0,0.00048721,120]
[356611035,1742818705935,-500.0,0.00048721,120]
[356611036,1742818705961,-512.89040429,0.00048721,120]
[356611037,1742818705987,-500.0,0.00048721,120]
[356611038,1742818706013,-500.0,0.00048721,120]
[356611039,1742818706039,-500.0,0.00048721,120]
[356611040,1742818706064,-500.0,0.00048721,120]
[356611041,1742818706089,-251.38972045,0.00048721,120]
[356611042,1742818706116,-500.0,0.00048721,120]
[356611043,1742818706141,-500.0,0.00048721,120]
[356611044,1742818706167,-500.0,0.00048721,120]
[356611045,1742818706191,-340.37151817,0.00048721,120]
[356611046,1742818706216,-500.0,0.00048721,120]
[356611047,1742818706241,-500.0,0.00048721,120]
[356611048,1742818706266,-500.0,0.00048721,120]
[356611049,1742818706291,-500.0,0.00048721,120]
[356611050,1742818706316,-500.0,0.00048721,120]
[356611051,1742818706342,-500.0,0.00048721,120]
[356611052,1742818706368,-500.0,0.00048721,120]
[356611053,1742818706394,-500.0,0.00048721,120]
[356611054,1742818706420,-434.79522552,0.00048721,120]
[356611055,1742818706446,-500.0,0.00048721,120]
[356611056,1742818706472,-500.0,0.00048721,120]
[356611057,1742818706498,-500.0,0.00048721,120]
[356611058,1742818706524,-500.0,0.00048721,120]
[356611059,1742818706676,-500.0,0.00048721,120]
[356611060,1742818706703,-500.0,0.00048721,120]
[356611061,1742818706732,-500.0,0.00048721,120]
[356611062,1742818706758,-500.0,0.00048721,120]
[356611063,1742818706786,-500.0,0.00048721,120]
[356611064,1742818706813,-500.0,0.00048721,120]
[356611065,1742818706839,-500.0,0.00048721,120]
[356611066,1742818706865,-307.43863163,0.00048721,120]
[356611067,1742818706890,-500.0,0.00048721,120]
[356611068,1742818706915,-500.0,0.00048721,120]
[356611069,1742818706940,-500.0,0.00048721,120]
[356611070,1742818706965,-238.7844903,0.00048721,120]
[356611071,1742818706991,-521.34042286,0.00048721,120]
[356611072,1742818707017,-516.81472441,0.00048721,120]
[356611073,1742818707042,-500.0,0.00048721,120]
[356611074,1742818707067,-500.0,0.00048721,120]
[356611075,1742818707092,-500.0,0.00048721,120]
[356611076,1742818707118,-500.0,0.00048721,120]
[356611077,1742818707144,-512.71540547,0.00048721,120]
[356611078,1742818707169,-500.0,0.00048721,120]
[356611079,1742818707195,-500.0,0.00048721,120]
[356611080,1742818707220,-500.0,0.00048721,120]
[356611081,1742818707245,-500.0,0.00048721,120]
[356611082,1742818707270,-500.0,0.00048721,120]
[356611083,1742818707295,-500.0,0.00048721,120]
[356611084,1742818707321,-512.99018161,0.00048721,120]
[356611085,1742818707347,-454.55562484,0.00048721,120]
[356611086,1742818707374,-500.0,0.00048721,120]
[356611087,1742818707400,-184.70429974,0.00048721,120]
[356611088,1742818707428,-522.32834109,0.00048721,120]
[356611089,1742818707454,-510.80116168,0.00048721,120]
[356611090,1742818707480,-500.0,0.00048721,120]
[356611091,1742818707507,-500.0,0.00048721,120]
[356611092,1742818707534,-500.0,0.00048721,120]
[356611093,1742818707560,-500.0,0.00048721,120]
[356611094,1742818707586,-500.0,0.00048721,120]
[356611095,1742818707613,-500.0,0.00048721,120]
[356611096,1742818707642,-500.0,0.00048721,120]
[356611097,1742818707669,-500.0,0.00048721,120]
[356611098,1742818707696,-292.42640797,0.00048721,120]
[356611099,1742818707727,-521.41964793,0.00048721,120]
[356611100,1742818707753,-508.59590082,0.00048721,120]
[356611101,1742818707778,-500.0,0.00048721,120]
[356611102,1742818707805,-574.20533601,0.00048721,120]
[356611103,1742818707831,-527.46874779,0.00048721,120]
[356611104,1742818707856,-500.0,0.00048721,120]
[356611105,1742818707881,-598.21147508,0.00048721,120]
[356611106,1742818707907,-500.0,0.00048721,120]
[356611107,1742818707933,-500.0,0.00048721,120]
[356611108,1742818707959,-512.87494166,0.00048721,120]
[356611109,1742818707984,-750.0,0.00048721,120]
[356611110,1742818708009,-750.0,0.00048721,120]
[356611111,1742818708034,-750.0,0.00048721,120]
[356611112,1742818708060,-750.0,0.00048721,120]
[356611113,1742818708089,-534.18026797,0.00048721,120]
[356611114,1742818708115,-750.0,0.00048721,120]
[356611115,1742818708140,-750.0,0.00048721,120]
[356611116,1742818708166,-750.0,0.00048721,120]
[356611117,1742818708191,-750.0,0.00048721,120]
[356611118,1742818708216,-795.0394713,0.00048721,120]
[356611119,1742818708242,-500.0,0.00048721,120]
[356611120,1742818708267,-500.0,0.00048721,120]
[356611121,1742818708292,-500.0,0.00048721,120]
[356611122,1742818708316,-500.0,0.00048721,120]
[356611123,1742818708342,-500.0,0.00048721,120]
[356611124,1742818708368,-500.0,0.00048721,120]
[356611125,1742818708396,-367.83,0.00048721,120]
[356611126,1742818708423,-500.0,0.00048721,120]
[356611127,1742818708449,-500.0,0.00048721,120]
[356611128,1742818708475,-500.0,0.00048721,120]
[356611129,1742818708500,-278.03051751,0.00048721,120]
[356611130,1742818708526,-500.0,0.00048721,120]
[356611131,1742818708551,-500.0,0.00048721,120]
[356611132,1742818708575,-500.0,0.00048721,120]
[356611133,1742818708600,-500.0,0.00048721,120]
[356611134,1742818708627,-500.0,0.00048721,120]
[356611135,1742818708653,-500.0,0.00048721,120]
[356611136,1742818708679,-500.0,0.00048721,120]
[356611137,1742818708710,-612.38620266,0.00048721,120]
[356611138,1742818708736,-500.0,0.00048721,120]
[356611139,1742818708762,-500.0,0.00048721,120]
[356611140,1742818708787,-500.0,0.00048721,120]
[356611141,1742818708813,-500.0,0.00048721,120]
[356611142,1742818708839,-500.0,0.00048721,120]
[356611143,1742818708865,-500.0,0.00048721,120]
[356611144,1742818708892,-500.0,0.00048721,120]
[356611145,1742818708918,-505.77874501,0.00048721,120]
[356611146,1742818708944,-500.0,0.00048721,120]
[356611147,1742818708969,-500.0,0.00048721,120]
[356611148,1742818708994,-484.43297878,0.00048721,120]
[356611149,1742818709020,-510.46469388,0.00048721,120]
[356611150,1742818709046,-500.0,0.00048721,120]
[356611151,1742818709071,-500.0,0.00048721,120]
[356611152,1742818709096,-500.0,0.00048721,120]
[356611153,1742818709123,-500.0,0.00048721,120]
[356611154,1742818709267,-500.0,0.00048721,120]
[356611155,1742818709294,-500.0,0.00048721,120]
[356611156,1742818709320,-162.42223258,0.00048721,120]
[356611157,1742818709346,-505.11828052,0.00048721,120]
[356611158,1742818709372,-500.0,0.00048721,120]
[356611159,1742818709399,-500.0,0.00048721,120]
[356611160,1742818709424,-500.0,0.00048721,120]
[356611161,1742818709449,-500.0,0.00048721,120]